bitfinex/quotes_BTCUSD_20251230
["timestamp","ask_amount","ask_price","bid_price","bid_amount"]
[1767109565832,0.73258,88819.0,88799.0,0.01136]
[1767109566533,0.73258,88819.0,88799.0,0.02262138]
[1767109566921,0.54476635,88820.0,88802.0,0.72232]
[1767109567122,0.54476635,88820.0,88801.0,0.06756654]
[1767109567123,0.00010655,88824.0,88806.0,0.72232]
[1767109567329,0.74394,88823.0,88806.0,0.72232]
[1767109567887,0.74394,88823.0,88800.0,0.05630618]
[1767109567888,0.01136,88823.0,88813.0,0.01125961]
[1767109568101,0.00010655,88824.0,88823.0,0.000349]
[1767109568253,0.00010655,88824.0,88807.0,0.73368]
[1767109568452,0.00010655,88824.0,88808.0,0.72232]
[1767109568676,0.00010655,88824.0,88808.0,0.73358024]
[1767109568877,0.00010655,88824.0,88808.0,0.72232]
[1767109569269,0.00010655,88824.0,88808.0,0.73358024]
[1767109569471,0.00010655,88824.0,88817.0,0.0112591]
[1767109569684,0.00010655,88824.0,88820.0,0.72232]
[1767109569899,0.00010655,88824.0,88818.0,0.72232]
[1767109570124,5.5e-07,88824.0,88818.0,0.72232]
[1767109570343,5.5e-07,88824.0,88818.0,0.73357897]
[1767109570546,5.5e-07,88824.0,88817.0,0.7335791]
[1767109570725,5.5e-07,88824.0,88820.0,0.72232]
[1767109571369,0.000655,88820.0,88815.0,0.01136]
[1767109571566,0.000655,88820.0,88815.0,0.73368]
[1767109571892,5.5e-07,88824.0,88819.0,0.72232]
[1767109573784,5.5e-07,88824.0,88819.0,0.722215]
[1767109574387,5.5e-07,88824.0,88790.0,0.79903766]
[1767109574545,5.5e-07,88824.0,88808.0,0.01126024]
[1767109574546,0.73258,88823.0,88808.0,0.01126024]
[1767109574913,0.73258,88823.0,88812.0,0.01125973]
[1767109575120,0.73258,88823.0,88811.0,0.01125986]
[1767109575264,0.73258,88823.0,88812.0,0.01125973]
[1767109575666,0.73258,88823.0,88813.0,0.01125961]
[1767109575871,5.5e-07,88824.0,88818.0,0.73357897]
[1767109576074,5.5e-07,88824.0,88820.0,0.74645]
[1767109576732,5.5e-07,88824.0,88817.0,0.0112591]
[1767109577508,5.5e-07,88824.0,88817.0,0.74645]
[1767109577917,0.01132,88835.0,88821.0,0.01125859]
[1767109578115,0.0001,88836.0,88828.0,0.74640963]
[1767109578739,0.0001,88836.0,88824.0,0.74645]
[1767109578740,0.000549,88828.0,88824.0,0.74645]
[1767109578914,0.0001,88836.0,88824.0,0.74645]
[1767109580122,0.0001,88836.0,88824.0,0.74586057]
[1767109581523,0.0001,88836.0,88824.0,0.74531157]
[1767109583836,0.0001,88836.0,88823.0,0.01132]
[1767109584037,0.69384,88835.0,88808.0,0.75771024]
[1767109584343,0.69384,88832.0,88817.0,4.99945]
[1767109585182,0.69384,88829.0,88817.0,4.24945]
[1767109585390,0.69384,88829.0,88817.0,3.96690796]
[1767109585594,0.04508,88833.0,88817.0,3.96690796]
[1767109585994,0.0001,88836.0,88817.0,3.96690796]
[1767109586592,0.79883766,88830.0,88817.0,3.96686404]
[1767109586793,0.01132,88829.0,88817.0,3.96686404]
[1767109586993,0.01132,88829.0,88817.0,3.71116932]
[1767109587994,0.79883766,88830.0,88817.0,3.71116932]
[1767109588197,0.01132,88828.0,88817.0,3.71116932]
[1767109590347,0.09233577,88828.0,88817.0,3.71116932]
[1767109590526,0.01132,88828.0,88817.0,3.71116932]
[1767109591423,0.01132,88827.0,88817.0,3.71116932]
[1767109591703,0.01132,88826.0,88817.0,3.71116932]
[1767109592895,0.01132,88826.0,88818.0,0.74645]
[1767109593418,0.01132,88826.0,88817.0,3.71116932]
[1767109593620,0.01054441,88825.0,88817.0,3.71116932]
[1767109593822,0.01132,88826.0,88817.0,3.71116932]
[1767109593823,0.01054441,88824.0,88817.0,3.19377988]
[1767109594070,0.01054441,88823.0,88817.0,2.11529005]
[1767109594206,0.01054441,88822.0,88817.0,1.12040883]
[1767109594407,0.01054441,88821.0,88817.0,0.39254233]
[1767109594633,0.01054441,88820.0,88817.0,0.13684761]
[1767109594833,0.01054441,88819.0,88790.0,0.0002]
[1767109595036,0.79883766,88800.0,88790.0,0.00055538]
[1767109595209,0.01132,88799.0,88790.0,0.00055538]
[1767109596553,0.01132,88799.0,88787.0,0.74645]
[1767109596775,0.01132,88799.0,88787.0,0.74655655]
[1767109596922,0.01132,88799.0,88787.0,0.00010655]
[1767109597353,0.01132,88798.0,88788.0,0.74645]
[1767109598337,0.01132,88798.0,88787.0,0.00010655]
[1767109601907,0.0064451,88798.0,88787.0,0.74655655]
[1767109603169,0.0064451,88798.0,88787.0,0.00010655]
[1767109605444,0.08054828,88797.0,88787.0,0.00010655]
[1767109605641,0.0064451,88798.0,88787.0,0.00010655]
[1767109609205,0.0064451,88798.0,88780.0,0.0003872]
[1767109609381,0.0064451,88798.0,88780.0,0.00049384]
[1767109609382,0.79883766,88790.0,88780.0,0.00049384]
[1767109609578,0.17100753,88789.0,88780.0,0.00049384]
[1767109609808,0.0242148,88788.0,88780.0,0.00049384]
[1767109610597,0.0564,88789.0,88780.0,0.00049384]
[1767109611832,0.0242123,88788.0,88780.0,0.00049384]
[1767109612292,0.01050742,88787.0,88780.0,0.00049384]
[1767109612494,0.09950316,88786.0,88780.0,0.00049384]
[1767109612695,0.03471972,88785.0,88780.0,0.00049384]
[1767109612900,0.01050742,88784.0,88780.0,0.00049384]
[1767109613676,0.01050742,88784.0,88769.0,0.0002]
[1767109614025,0.0242123,88788.0,88769.0,0.0002]
[1767109614026,0.79883766,88780.0,88769.0,0.0002]
[1767109614265,0.04603972,88779.0,88769.0,0.0002]
[1767109614436,0.01050742,88778.0,88754.0,0.7335421]
[1767109614585,0.79883766,88770.0,88754.0,0.7335421]
[1767109614778,0.0355323,88769.0,88754.0,0.7335421]
[1767109615024,0.04508,88768.0,88754.0,0.7335421]
[1767109615425,0.01132,88771.0,88754.0,0.0004221]
[1767109615627,0.01132,88770.0,88755.0,0.73312]
[1767109616056,0.81015766,88770.0,88755.0,0.73312]
[1767109616367,0.02419431,88769.0,88755.0,0.73312]
[1767109618707,0.01050989,88768.0,88755.0,0.73312]
[1767109619094,0.16858992,88767.0,88754.0,0.0004221]
[1767109619264,0.79883766,88764.0,88754.0,0.0004221]
[1767109619466,0.15808,88767.0,88754.0,0.0004221]
[1767109619467,0.81015766,88770.0,88754.0,0.0004221]
[1767109619669,0.03470281,88769.0,88755.0,0.74048]
[1767109619808,0.01050809,88768.0,88755.0,0.74048]
[1767109620012,0.01050764,88767.0,88755.0,0.74048]
[1767109620213,0.01050764,88766.0,88755.0,0.74048]
[1767109620415,0.02419472,88769.0,88755.0,0.74048]
[1767109620416,0.010811,88765.0,88755.0,0.74048]
[1767109620861,0.01136,88764.0,88755.0,0.74048]
[1767109621060,0.01136,88764.0,88754.0,0.0004221]
[1767109621061,0.000549,88755.0,88754.0,0.0004221]
[1767109621264,0.000549,88755.0,88754.0,0.7409021]
[1767109621479,0.01136,88762.0,88754.0,0.7409021]
[1767109621675,0.01136,88762.0,88754.0,0.74027163]
[1767109621930,4.72e-06,88769.0,88754.0,0.74027163]
[1767109622121,0.79884238,88770.0,88748.0,0.74048]
[1767109622323,0.02187245,88769.0,88748.0,0.74048]
[1767109622526,0.01136,88769.0,88748.0,0.74048]
[1767109622901,0.01051275,88768.0,88748.0,0.74048]
[1767109623257,0.01051275,88767.0,88748.0,0.74048]
[1767109623424,0.01136,88769.0,88748.0,0.74048]
[1767109623425,0.01051275,88766.0,88748.0,0.74048]
[1767109623628,0.01051275,88765.0,88748.0,0.74048]
[1767109623835,0.01136,88769.0,88748.0,0.74048]
[1767109624019,0.01051688,88768.0,88748.0,0.74048]
[1767109624222,0.01051688,88767.0,88748.0,0.74048]
[1767109624434,0.01136,88769.0,88748.0,0.74048]
[1767109624435,0.01051688,88766.0,88748.0,0.74048]
[1767109624759,0.01051688,88765.0,88748.0,0.74048]
[1767109624971,0.01051688,88764.0,88748.0,0.74048]
[1767109625143,0.79883766,88760.0,88748.0,0.74048]
[1767109625321,0.02187688,88759.0,88748.0,0.74048]
[1767109625524,0.08279974,88759.0,88748.0,0.74048]
[1767109625749,0.08279974,88759.0,88743.0,0.00053888]
[1767109625750,0.01136,88759.0,88743.0,0.00053888]
[1767109625949,0.000549,88748.0,88743.0,0.00053888]
[1767109626248,0.01136,88751.0,88739.0,0.73501888]
[1767109626423,0.01051196,88750.0,88739.0,0.73501888]
[1767109626627,0.01051196,88749.0,88739.0,0.73501888]
[1767109627031,0.01051196,88748.0,88739.0,0.73501888]
[1767109627241,0.21549,88746.0,88730.0,0.74048]
[1767109627455,0.79883766,88740.0,88730.0,0.74048]
[1767109627610,0.01136,88739.0,88730.0,0.74048]
[1767109627784,0.01146646,88739.0,88729.0,0.0004221]
[1767109627994,0.01136,88740.0,88730.0,0.74048]
[1767109628202,0.03026487,88758.0,88741.0,0.74048]
[1767109628403,0.02186271,88757.0,88741.0,0.74048]
[1767109628625,0.01136,88757.0,88743.0,0.74048]
[1767109629192,0.011253,88757.0,88739.0,0.751749]
[1767109629489,0.011253,88757.0,88740.0,0.75174887]
[1767109629662,0.011253,88757.0,88741.0,0.74048]
[1767109630395,0.01050026,88756.0,88741.0,0.74048]
[1767109630583,0.011253,88757.0,88741.0,0.74048]
[1767109630788,0.01049868,88756.0,88741.0,0.74048]
[1767109630990,3e-06,88757.0,88756.0,0.61682791]
[1767109631189,3e-06,88757.0,88756.0,0.54803743]
[1767109631394,3e-06,88757.0,88756.0,0.51395743]
[1767109631568,0.03026487,88770.0,88756.0,0.50259743]
[1767109631569,0.01136,88763.0,88756.0,0.50259743]
[1767109631898,0.01136,88763.0,88756.0,0.49670142]
[1767109632050,0.03026487,88770.0,88745.0,0.74048]
[1767109632253,0.03026487,88770.0,88744.0,0.01136]
[1767109632254,0.03026487,88772.0,88751.0,0.74048]
[1767109632457,0.03026487,88785.0,88763.0,0.74048]
[1767109632661,0.04508,88787.0,88763.0,0.74048]
[1767109632662,0.01136,88784.0,88763.0,0.74048]
[1767109632859,0.56863487,88783.0,88763.0,0.74048]
[1767109633176,0.56863487,88775.0,88748.0,0.75184]
[1767109633384,0.53837,88772.0,88754.0,0.74048]
[1767109633547,0.56874151,88772.0,88754.0,0.74048]
[1767109633966,0.53847664,88772.0,88754.0,0.74048]
[1767109634184,0.02424072,88771.0,88754.0,0.74048]
[1767109634624,0.001099,88754.0,88748.0,0.75184]
[1767109634875,0.53837,88769.0,88748.0,0.75184]
[1767109634876,0.01136,88763.0,88748.0,0.75184]
[1767109635295,0.54973,88763.0,88748.0,0.75184]
[1767109635500,0.53837,88761.0,88730.0,0.74048]
[1767109635717,0.56863487,88756.0,88730.0,0.74048]
[1767109635904,0.03026487,88752.0,88730.0,0.75184]
[1767109636100,0.04162487,88755.0,88730.0,0.75184]
[1767109636797,0.56863487,88753.0,88730.0,0.75184]
[1767109637051,0.53837,88751.0,88730.0,0.75184]
[1767109637242,0.02424072,88750.0,88730.0,0.75184]
[1767109637821,0.02424072,88751.0,88733.0,0.71417]
[1767109638046,0.03560072,88755.0,88733.0,0.71417]
[1767109638255,0.03026487,88751.0,88733.0,0.71417]
[1767109638734,0.56863487,88751.0,88733.0,0.71417]
[1767109638934,0.65329915,88750.0,88733.0,0.71417]
[1767109639159,0.56261072,88749.0,88733.0,0.71417]
[1767109639374,0.02424072,88748.0,88733.0,0.71417]
[1767109639574,0.01136,88747.0,88733.0,0.71417]
[1767109640137,0.01136,88747.0,88725.0,0.00053905]
[1767109640138,0.000349,88733.0,88725.0,0.00053905]
[1767109640397,0.000349,88733.0,88716.0,0.71314605]
[1767109640398,0.53939,88733.0,88716.0,0.71314605]
[1767109640594,0.59389559,88732.0,88716.0,0.71314605]
[1767109640806,0.03026487,88730.0,88716.0,0.71314605]
[1767109641208,0.03026487,88728.0,88716.0,0.71314605]
[1767109641425,0.04162487,88729.0,88728.0,0.714359]
[1767109641608,4.87e-06,88729.0,88728.0,0.61559316]
[1767109641819,0.01136,88733.0,88729.0,0.71471513]
[1767109642183,0.01136,88739.0,88729.0,0.71471513]
[1767109642386,0.01136,88739.0,88729.0,0.71417]
[1767109643009,1.25e-06,88738.0,88732.0,0.71417]
[1767109643196,0.04038179,88758.0,88740.0,0.71417]
[1767109643393,0.0002,88753.0,88740.0,0.71417]
[1767109644017,0.0002,88753.0,88740.0,0.72553]
[1767109645822,0.01136,88757.0,88741.0,0.71417]
[1767109646023,0.01136,88763.0,88741.0,0.71417]
[1767109646203,0.78181818,88762.0,88741.0,0.71417]
[1767109646406,0.70604,88762.0,88741.0,0.71417]
[1767109646622,0.70604,88762.0,88740.0,0.01136]
[1767109647007,0.70604,88762.0,88741.0,0.71417]
[1767109647720,0.01136,88763.0,88741.0,0.71417]
[1767109648513,0.01136,88763.0,88741.0,0.71376999]
[1767109649366,0.01136,88763.0,88741.0,0.71417]
[1767109650696,0.04512,88771.0,88748.0,0.01126785]
[1767109650867,0.05648,88771.0,88749.0,0.01136]
[1767109651067,0.70604,88770.0,88753.0,0.71437]
[1767109651833,0.000349,88753.0,88743.0,0.71417]
[1767109652005,0.000349,88753.0,88744.0,0.01136]
[1767109652254,0.70604,88762.0,88744.0,0.72553]
[1767109654295,0.07637864,88770.0,88744.0,0.72553]
[1767109654497,0.70614664,88770.0,88745.0,0.71417]
[1767109655126,0.03484054,88769.0,88745.0,0.71417]
[1767109655381,0.01054497,88768.0,88745.0,0.71417]
[1767109655584,0.01054497,88767.0,88745.0,0.72543824]
[1767109655746,0.01054497,88766.0,88745.0,0.71417]
[1767109655945,0.01054497,88765.0,88745.0,0.71417]
[1767109656151,0.09029169,88764.0,88745.0,0.71417]
[1767109656369,0.02429557,88763.0,88745.0,0.71417]
[1767109656575,0.01054411,88762.0,88745.0,0.71417]
[1767109656779,0.01054411,88762.0,88744.0,0.01136]
[1767109656780,0.04038179,88789.0,88768.0,0.71417]
[1767109657098,0.04038179,88808.0,88771.0,0.71417]
[1767109657228,0.70604,88799.0,88772.0,0.72553]
[1767109657677,0.70604,88799.0,88780.0,0.01126379]
[1767109657850,0.70604,88799.0,88769.0,0.116557]
[1767109657851,0.0002377,88813.0,88795.0,0.01126189]
[1767109658063,0.0002377,88813.0,88796.0,0.72553]
[1767109658064,0.00059301,88813.0,88796.0,0.72553]
[1767109658264,0.00059301,88813.0,88790.0,0.0002]
[1767109658265,0.00059301,88813.0,88798.0,0.71417]
[1767109658430,0.00059301,88813.0,88799.0,0.73743739]
[1767109660307,3.01e-06,88813.0,88800.0,0.72553]
[1767109660450,0.000349,88800.0,88791.0,0.71417]
[1767109660656,0.000349,88800.0,88792.0,0.71417]
[1767109660859,0.000349,88800.0,88793.0,0.72553]
[1767109661072,0.70604301,88813.0,88793.0,0.72553]
[1767109661290,0.70604301,88813.0,88795.0,0.71417]
[1767109661701,3.01e-06,88813.0,88795.0,0.71417]
[1767109663259,3.01e-06,88813.0,88795.0,0.72543189]
[1767109663447,3.01e-06,88813.0,88797.0,0.71417]
[1767109663960,3.01e-06,88813.0,88799.0,0.71417]
[1767109664160,3.01e-06,88813.0,88801.0,0.71417]
[1767109664486,0.0001,88836.0,88800.0,0.01136]
[1767109664487,0.0001,88836.0,88809.0,0.01126012]
[1767109664622,0.70624655,88836.0,88810.0,0.72553]
[1767109665665,0.70624655,88836.0,88810.0,0.66850589]
[1767109670071,0.00020655,88836.0,88810.0,0.66850589]
[1767109670271,0.70143655,88836.0,88810.0,0.66850589]
[1767109670472,0.70143655,88836.0,88812.0,0.69817]
[1767109671714,0.70143655,88836.0,88813.0,0.01132]
[1767109672294,0.70143655,88836.0,88790.0,0.0002]
[1767109672295,0.0005422,88814.0,88790.0,0.0002]
[1767109672494,0.00020655,88836.0,88790.0,0.0002]
[1767109672495,0.70123,88821.0,88793.0,0.69817]
[1767109673270,0.70123,88821.0,88795.0,0.69817]
[1767109673633,0.00048026,88796.0,88795.0,0.69817]
[1767109673815,0.70123,88816.0,88795.0,0.70949]
[1767109674851,0.70123,88816.0,88795.0,0.70984531]
[1767109675865,0.70123,88816.0,88797.0,0.69817]
[1767109676158,0.01132,88828.0,88797.0,0.69817]
[1767109676159,0.70123,88827.0,88797.0,0.69817]
[1767109676405,0.70123,88827.0,88799.0,0.69817]
[1767109677882,0.0001,88836.0,88806.0,0.69817]
[1767109677883,0.70123,88835.0,88806.0,0.69817]
[1767109678082,0.70123,88835.0,88808.0,0.69817]
[1767109678685,0.73583518,88834.0,88808.0,0.69817]
[1767109678873,0.70123,88834.0,88808.0,0.70843]
[1767109679478,0.03461727,88833.0,88808.0,0.70843]
[1767109679677,0.03461727,88833.0,88808.0,0.71969024]
[1767109679678,0.02413995,88833.0,88808.0,0.71969024]
[1767109679889,0.0001,88836.0,88811.0,0.70843]
[1767109680090,0.01048068,88835.0,88811.0,0.70843]
[1767109680311,0.01048068,88834.0,88811.0,0.70843]
[1767109680515,0.01048068,88833.0,88811.0,0.70843]
[1767109680717,0.0346196,88833.0,88811.0,0.70843]
[1767109680926,0.02413892,88833.0,88811.0,0.70843]
[1767109681297,0.0001,88836.0,88811.0,0.71968986]
[1767109681508,0.02325883,88838.0,88822.0,0.70843]
[1767109681651,0.0004807,88845.0,88828.0,0.70843]
[1767109681856,0.69167,88862.0,88825.0,0.71968809]
[1767109682052,0.01048347,88861.0,88830.0,0.54560581]
[1767109682239,0.00023748,88865.0,88847.0,0.70843]
[1767109682438,0.02720406,88872.0,88855.0,0.70843]
[1767109682654,0.02731067,88872.0,88857.0,0.70843]
[1767109683183,0.01048757,88871.0,88857.0,0.70843]
[1767109683341,0.02731067,88872.0,88857.0,0.72194819]
[1767109684114,0.02731067,88872.0,88844.0,0.70843]
[1767109684115,0.68035,88870.0,88844.0,0.70843]
[1767109684252,0.0104816,88871.0,88845.0,0.01132]
[1767109684253,0.68035,88868.0,88845.0,0.01132]
[1767109684467,0.68035,88866.0,88846.0,0.01132]
[1767109684674,0.6908316,88865.0,88846.0,0.010771]
[1767109684848,0.0104816,88864.0,88846.0,0.010771]
[1767109685077,0.0104816,88864.0,88846.0,0.719201]
[1767109687757,0.0104816,88863.0,88846.0,0.719201]
[1767109688114,0.0104816,88862.0,88846.0,0.719201]
[1767109688413,0.0104816,88861.0,88846.0,0.719201]
[1767109688712,0.0104816,88860.0,88846.0,0.719201]
[1767109688854,0.68035,88869.0,88846.0,0.719201]
[1767109689193,0.01132,88871.0,88846.0,0.719201]
[1767109689194,0.72498794,88868.0,88846.0,0.719201]
[1767109689361,0.69085052,88867.0,88846.0,0.719201]
[1767109689542,0.01050052,88866.0,88846.0,0.719201]
[1767109689741,0.01050052,88865.0,88846.0,0.719201]
[1767109689959,0.01050052,88864.0,88846.0,0.719201]
[1767109690195,0.01050052,88863.0,88846.0,0.719201]
[1767109690399,0.01050052,88862.0,88846.0,0.719201]
[1767109690751,0.68035,88860.0,88821.0,0.70843]
[1767109690952,0.72073179,88855.0,88823.0,0.70843]
[1767109691104,0.68035,88853.0,88823.0,0.70843]
[1767109691270,0.68035,88851.0,88823.0,0.70843]
[1767109691472,0.68035,88849.0,88825.0,0.70843]
[1767109691726,0.68035,88847.0,88826.0,0.01132]
[1767109692038,0.68035,88845.0,88826.0,0.01132]
[1767109692185,0.01050052,88844.0,88826.0,0.01132]
[1767109692387,0.01050052,88844.0,88826.0,0.71975]
[1767109692794,0.01050052,88843.0,88827.0,0.70843]
[1767109693001,0.01132,88850.0,88827.0,0.70843]
[1767109693002,0.01050052,88842.0,88827.0,0.70843]
[1767109693359,0.01050052,88841.0,88827.0,0.70843]
[1767109698017,0.00010655,88842.0,88829.0,0.74618]
[1767109698219,0.02399894,88852.0,88841.0,0.62234765]
[1767109698426,0.7266,88857.0,88841.0,0.62234765]
[1767109698647,0.7266,88857.0,88842.0,0.06336677]
[1767109698856,0.01132,88858.0,88843.0,0.74618]
[1767109699471,0.04038179,88871.0,88843.0,0.75743581]
[1767109699671,0.00010651,88871.0,88843.0,0.74618]
[1767109699878,0.00010651,88871.0,88845.0,0.74618]
[1767109700394,0.7266,88870.0,88832.0,0.74618]
[1767109700551,0.7266,88866.0,88832.0,0.74618]
[1767109700752,0.7266,88861.0,88834.0,0.74618]
[1767109700998,0.7266,88861.0,88836.0,0.74618]
[1767109701373,0.7266,88861.0,88838.0,0.74618]
[1767109701591,0.030264,88856.0,88838.0,0.74618]
[1767109701792,0.041584,88856.0,88838.0,0.74618]
[1767109701995,0.030264,88858.0,88837.0,0.01132]
[1767109702196,0.7266,88866.0,88838.0,0.74529585]
[1767109702808,0.7266,88859.0,88831.0,0.74638]
[1767109702984,0.001099,88838.0,88832.0,0.01132]
[1767109703546,0.7266,88850.0,88832.0,0.7575]
[1767109703684,0.7266,88850.0,88832.0,0.74618]
[1767109703884,0.7266,88850.0,88833.0,0.75754]
[1767109704229,0.7266,88850.0,88833.0,0.75764655]
[1767109705166,0.030264,88855.0,88833.0,0.75764655]
[1767109705365,0.030264,88861.0,88835.0,0.74618]
[1767109705536,0.756864,88862.0,88834.0,0.75743695]
[1767109705741,0.01132,88869.0,88838.0,0.01125644]
[1767109705742,0.030264,88865.0,88838.0,0.01125644]
[1767109705943,0.7266,88867.0,88841.0,0.74618]
[1767109706142,0.02720406,88872.0,88833.0,0.01146655]
[1767109706143,0.030264,88866.0,88846.0,0.74618]
[1767109706380,0.030264,88870.0,88848.0,0.74618]
[1767109706664,0.7266,88868.0,88836.0,0.74618]
[1767109706811,0.7266,88868.0,88841.0,0.74618]
[1767109707210,0.01143488,88869.0,88841.0,0.74618]
[1767109707211,0.7266,88866.0,88841.0,0.74618]
[1767109707805,0.7266,88866.0,88842.0,0.74618]
[1767109708264,0.756864,88865.0,88842.0,0.74618]
[1767109708426,0.80746807,88864.0,88842.0,0.74618]
[1767109708629,0.80746807,88864.0,88833.0,0.00010655]
[1767109708833,0.7266,88860.0,88834.0,0.74618]
[1767109709036,0.01136,88863.0,88836.0,0.74618]
[1767109709037,0.7266,88855.0,88836.0,0.74618]
[1767109709983,0.73712928,88854.0,88836.0,0.74618]
[1767109710131,0.11556654,88853.0,88836.0,0.74618]
[1767109710330,0.7266,88854.0,88836.0,0.74618]
[1767109710331,0.03478903,88852.0,88836.0,0.74618]
[1767109710550,0.756864,88854.0,88836.0,0.74618]
[1767109710551,0.01052928,88851.0,88836.0,0.74618]
[1767109710755,0.01052928,88850.0,88836.0,0.74618]
[1767109710953,0.01052928,88849.0,88836.0,0.74618]
[1767109711163,0.01052928,88848.0,88836.0,0.74618]
[1767109711364,0.02425975,88853.0,88836.0,0.74618]
[1767109711365,0.01052928,88847.0,88836.0,0.74618]
[1767109711568,0.000549,88836.0,88833.0,0.00010655]
[1767109711731,0.000549,88836.0,88834.0,0.7575]
[1767109712282,0.05452375,88848.0,88834.0,0.7575]
[1767109712485,0.01053866,88847.0,88834.0,0.7575]
[1767109712629,0.01053866,88846.0,88834.0,0.7575]
[1767109712834,0.01053866,88845.0,88834.0,0.7575]
[1767109713035,0.01053866,88844.0,88834.0,0.7575]
[1767109713243,0.01053866,88843.0,88834.0,0.7575]
[1767109713453,0.01053866,88842.0,88834.0,0.7575]
[1767109713696,0.030264,88850.0,88834.0,0.7575]
[1767109713855,0.01054022,88849.0,88834.0,0.7575]
[1767109714074,0.01054022,88848.0,88834.0,0.7575]
[1767109714294,0.01054022,88847.0,88834.0,0.7575]
[1767109714492,0.01054022,88846.0,88834.0,0.7575]
[1767109714693,0.030264,88851.0,88834.0,0.7575]
[1767109714694,0.01054022,88845.0,88834.0,0.7575]
[1767109715044,0.01054022,88845.0,88810.0,0.2251985]
[1767109715045,0.01054022,88844.0,88827.0,0.74618]
[1767109715175,0.01054022,88844.0,88790.0,0.08115886]
[1767109715176,0.727149,88834.0,88816.0,0.01132]
[1767109715374,0.727149,88834.0,88810.0,0.74618]
[1767109715375,0.00055,88827.0,88810.0,0.74618]
[1767109715576,0.00055,88827.0,88791.0,0.0112624]
[1767109715577,0.7371422,88826.0,88791.0,0.74618]
[1767109715776,0.7266,88824.0,88793.0,0.74618]
[1767109715994,0.7266,88822.0,88795.0,0.74618]
[1767109716206,0.76140261,88821.0,88799.0,0.74618]
[1767109716402,0.01132,88828.0,88801.0,0.74618]
[1767109716403,0.75085975,88820.0,88801.0,0.74618]
[1767109716599,0.7266,88820.0,88801.0,0.74618]
[1767109716798,0.7266,88827.0,88805.0,0.74618]
[1767109716999,0.02427858,88826.0,88815.0,0.74618]
[1767109717179,0.02427858,88826.0,88813.0,0.01125961]
[1767109717180,0.0242773,88833.0,88817.0,0.74618]
[1767109717391,0.00010645,88834.0,88817.0,0.74618]
[1767109717605,0.01053559,88833.0,88818.0,0.82935295]
[1767109717798,0.00010645,88834.0,88818.0,0.82935295]
[1767109718029,0.01053559,88833.0,88818.0,0.82935295]
[1767109718221,0.00010645,88834.0,88818.0,0.82935295]
[1767109718421,0.00010645,88834.0,88818.0,0.74618]
[1767109718746,0.7266,88833.0,88816.0,0.01132]
[1767109718950,0.7266,88831.0,88816.0,0.01136]
[1767109719106,0.7266,88829.0,88816.0,0.01136]
[1767109719448,0.7266,88827.0,88816.0,0.01136]
[1767109719742,0.7266,88825.0,88816.0,0.01136]
[1767109720211,0.030264,88860.0,88840.0,0.01125619]
[1767109720420,0.20256876,88889.0,88840.0,0.01125619]
[1767109720421,0.02426724,88864.0,88842.0,0.74618]
[1767109720628,0.01136,88866.0,88845.0,0.75743555]
[1767109720826,0.00027851,88864.0,88846.0,0.74618]
[1767109720959,0.5139317,88863.0,88846.0,0.74618]
[1767109721165,0.00027851,88864.0,88846.0,0.74618]
[1767109721166,0.53819894,88862.0,88846.0,0.74618]
[1767109721363,0.0105317,88861.0,88846.0,0.74618]
[1767109721558,0.5034,88862.0,88846.0,0.75743543]
[1767109721784,0.01070321,88861.0,88846.0,0.74618]
[1767109721961,0.000172,88861.0,88846.0,0.74618]
[1767109722677,0.000172,88861.0,88848.0,0.75743517]
[1767109722881,0.02426347,88867.0,88855.0,0.01125429]
[1767109723046,0.01136,88870.0,88857.0,0.74618]
[1767109725497,0.000549,88857.0,88856.0,0.74618]
[1767109725898,0.51476,88870.0,88856.0,0.74618]
[1767109726334,0.0002,88886.0,88871.0,0.05626084]
[1767109726490,0.0002,88886.0,88872.0,0.74169]
[1767109727079,0.0002,88886.0,88872.0,0.68534493]
[1767109729562,0.0002,88886.0,88872.0,0.67398493]
[1767109730016,0.0002,88886.0,88873.0,0.74169]
[1767109730294,0.0002,88886.0,88875.0,0.73033]
[1767109730502,0.0002,88886.0,88875.0,0.73005954]
[1767109730677,0.0002,88886.0,88875.0,0.72505954]
[1767109731897,0.0002,88886.0,88878.0,0.73033]
[1767109732097,0.01136,88895.0,88880.0,0.73033]
[1767109732509,0.01136,88895.0,88877.0,0.0112515]
[1767109732510,0.01136,88895.0,88881.0,0.08090913]
[1767109732698,0.01136,88895.0,88881.0,0.73033]
[1767109733571,0.01136,88895.0,88881.0,0.61765162]
[1767109735619,0.01136,88895.0,88881.0,0.61265162]
[1767109736628,0.01136,88895.0,88881.0,0.60090663]
[1767109736832,0.01136,88895.0,88875.0,0.01132]
[1767109736833,0.001099,88881.0,88875.0,0.01132]
[1767109737060,0.69444,88894.0,88876.0,0.73033]
[1767109737460,0.69444,88894.0,88859.0,0.73033]
[1767109737635,0.69444,88894.0,88871.0,0.73033]
[1767109737836,0.69444,88894.0,88871.0,0.74165]
[1767109738449,0.69444,88894.0,88871.0,0.73033]
[1767109738649,0.69444,88894.0,88871.0,0.74165]
[1767109739061,0.74205389,88894.0,88871.0,0.74165]
[1767109741782,0.01136,88895.0,88871.0,0.74165]
[1767109741984,0.04504,88910.0,88876.0,0.71887]
[1767109742181,0.02414808,88918.0,88890.0,0.79863842]
[1767109742426,0.69444,88917.0,88893.0,0.71887]
[1767109742707,8.306e-05,88919.0,88895.0,0.71887]
[1767109742911,8.306e-05,88919.0,88897.0,0.71887]
[1767109743114,8.306e-05,88919.0,88899.0,0.71887]
[1767109743243,8.306e-05,88919.0,88901.0,0.71887]
[1767109743447,0.00070928,88915.0,88901.0,0.71887]
[1767109743844,0.00070928,88915.0,88903.0,0.66230607]
[1767109744176,0.00070928,88915.0,88904.0,0.06736261]
[1767109744355,0.00070928,88915.0,88845.0,0.18980293]
[1767109744356,0.00070928,88915.0,88906.0,0.65122545]
[1767109744719,0.00070928,88915.0,88906.0,0.65012645]
[1767109744854,0.00070928,88915.0,88905.0,0.01132]
[1767109745061,0.00294928,88915.0,88906.0,0.71887]
[1767109745259,0.0002,88930.0,88916.0,0.65340188]
[1767109745459,0.0752251,88947.0,88916.0,0.65340188]
[1767109745460,0.01132,88950.0,88930.0,9.35e-05]
[1767109745734,0.0001348,88948.0,88936.0,0.0003459]